Cogmind - Beta 17.1 @@@ ROGUE MODE // 2026.09.01 @ 18:31:01 Player: 4R-ZE3 Result: Destroyed by H-88 Terminator with KE Penetrator Performance ------------- Evolutions (8) 4000 Regions Visited (14) 2800 Robots Destroyed (105) 525 Value Destroyed (6790) 6790 Prototype IDs (84) 1680 Alien Tech Used (4) 800 Bonus (26877) 26877 TOTAL SCORE: 43472 Bonus ------- Triggered High Security 500 High Alert Combat Kills 3346 Follower Combat Kills 5392 Prayed to X0-1V1 5000 Major X0-1V1 Interference 9150 Entered DSFs 500 Registered with UFD 300 Built Enhanced Grunts 300 A7 Reached Mainframe 300 Met R17 at Cetus 500 Met R17 at Research 2000 Friendly Fire -411 Cogmind --------- Core Integrity 0/1250 Matter 150/150 Energy 98/100 System Corruption 22% Temperature Cool (0) Movement Core (50) Location -2/Section 7 Parts ------- > --- POWER (3) -------- (None) > --- PROPULSION (6) --- (None) > --- UTILITY (13) ----- X0-1V1's Piety Tracker > --- WEAPON (2) ------- (None) > --- INVENTORY (5) ---- Advanced Cryofiber Web Heavy Quantum Rifle Enhanced Nova Cannon Core Cannon Peak State ------------ > --- POWER ------------ Quantum Reactor Quantum Reactor Light Quantum Reactor > --- PROPULSION ------- Advanced Medium Treads Improved Heavy Treads Biometal Medium Treads Armored Heavy Treads > --- UTILITY ---------- Advanced Cooling System Huge Storage Unit Long-range Sensor Array Advanced Signal Interpreter Centrium Medium Armor Plating Wyrmplate Graphene Brace Advanced Remote Force Field A0-MCA's Component Scanner X0-1V1's Piety Tracker > --- WEAPON ----------- HERF Cannon Nova Cannon > --- INVENTORY -------- Neutrino Core Light Quantum Reactor Light Quantum Reactor Advanced Medium Treads Advanced Medium Treads Advanced Medium Treads Advanced Heavy Treads Advanced Cryofiber Web Advanced Cryofiber Web Advanced Coolant Injector Quantum Capacitor Centrium Medium Armor Plating Advanced System Restoration Module Dimensional Node Initializer Transdimensional Reconstructor Advanced Variable Charge Gun HERF Cannon HERF Cannon Phase Cannon Nova Cannon Core Cannon Advanced Remote Datajack [Rating: 225] Favorites ----------- Power Quantum Reactor Engine Deuterium Engine Power Core Neutrino Core Reactor Quantum Reactor Propulsion Light Treads Treads Light Treads Wheel Armored Wheel Utility X0-1V1's Piety Tracker Device X0-1V1's Piety Tracker Storage Huge Storage Unit Processor A0-MCA's Component Scanner Hackware System Shield Protection Wyrmplate Weapon Phase Cannon Energy Gun Advanced Variable Charge Gun Energy Cannon Phase Cannon Ballistic Gun Light Assault Rifle Launcher Rocket Launcher Special Weapon CPS Tube Slashing Weapon Ionic Axe Build | -11 -10 -10 -9 -6 -6 -6 -5 -4 -4 -3 -3 -2 -2 -2 ------- Run | Yrd Mat Sub Scr Fac Ext Cet Fac Fac DSF Res Qua Res Tes Sec Slots Evolved 16 | . . . . 8 . . 2 2 . 2 . 2 . . Power 2 | . . . . 1 . . 1 . . . . . . . Propulsion 3 | . . . . 3 . . . . . . . . . . Utility 11 | . . . . 4 . . 1 2 . 2 . 2 . . Weapon . | . . . . . . . . . . . . . . . Parts Attached 100 | 6 7 . 13 11 6 8 4 . 5 8 10 2 20 . Power 18 | 1 2 . 2 . 1 2 . . 2 1 1 . 6 . Engine 5 | 1 1 . 1 . 1 . . . . . . . 1 . Core 3 | . 1 . 1 . . . . . 1 . . . . . Reactor 10 | . . . . . . 2 . . 1 1 1 . 5 . Propulsion 23 | 2 . . 5 3 4 2 . . . 2 1 . 4 . Treads 19 | 2 . . 4 1 3 2 . . . 2 1 . 4 . Leg . | . . . . . . . . . . . . . . . Wheel 4 | . . . 1 2 1 . . . . . . . . . Hover . | . . . . . . . . . . . . . . . Flight . | . . . . . . . . . . . . . . . Utility 35 | 1 3 . 1 6 1 1 3 . 2 4 5 2 6 . Device 21 | . 2 . 1 3 1 . 1 . 1 1 5 1 5 . Storage 3 | 1 1 . . . . 1 . . . . . . . . Processor 2 | . . . . . . . . . 1 1 . . . . Hackware 1 | . . . . 1 . . . . . . . . . . Protection 8 | . . . . 2 . . 2 . . 2 . 1 1 . Artifact . | . . . . . . . . . . . . . . . Weapon 24 | 2 2 . 5 2 . 3 1 . 1 1 3 . 4 . Energy Gun 3 | . . . . . . 2 . . . . . . 1 . Energy Cannon 15 | . 2 . 2 2 . 1 1 . 1 1 2 . 3 . Ballistic Gun 2 | 2 . . . . . . . . . . . . . . Ballistic Cannon . | . . . . . . . . . . . . . . . Launcher 3 | . . . 2 . . . . . . . 1 . . . Special Weapon 1 | . . . 1 . . . . . . . . . . . Impact Weapon . | . . . . . . . . . . . . . . . Slashing Weapon . | . . . . . . . . . . . . . . . Piercing Weapon . | . . . . . . . . . . . . . . . Special Melee Weapon . | . . . . . . . . . . . . . . . Unidentified Prototypes 10 | . . . . 2 . 2 1 . . . 4 . 1 . Corrupted Parts 8 | . . . 3 . . 5 . . . . . . . . System Corruption 40 | . . . 24 . . 16 . . . . . . . . Parts Lost 43 | . 1 . 6 1 5 . 1 . 6 . 1 1 21 . Power 13 | . 1 . 1 . 1 . . . 2 . . 1 7 . Propulsion 15 | . . . 4 . 3 . . . 2 . . . 6 . Utility 10 | . . . . . 1 . 1 . 2 . 1 . 5 . Weapon 5 | . . . 1 1 . . . . . . . . 3 . Highest Loss Streak 14 | . 1 . 5 1 4 . 1 . 4 . 1 1 14 . To Critical Strikes . | . . . . . . . . . . . . . . . Average Backups 17 | 1 7 10 18 10 14 14 17 18 14 15 22 20 20 4 Power . | . 1 1 1 . . . 1 2 1 . . 1 2 . Propulsion 3 | . 2 3 4 1 3 2 1 1 1 1 3 4 2 . Utility 5 | . 1 3 5 4 4 5 5 5 2 3 8 6 6 1 Weapon 6 | . 3 3 5 3 6 6 9 10 9 10 7 6 5 3 Tool/Special . | . . . . . . . . . . . . . . . Unused Backups 36 | . 3 . 5 . 5 2 . . . 1 10 . 8 2 Power 2 | . . . 1 . . . . . . . . . 1 . Propulsion 10 | . . . 1 . 3 2 . . . 1 2 . 1 . Utility 9 | . . . . . . . . . . . 4 . 4 1 Weapon 13 | . 3 . 3 . 2 . . . . . 4 . . 1 Tool/Special 2 | . . . . . . . . . . . . . 2 . Average Slot Usage (%) 81 | . 94 100 99 95 95 90 72 65 69 67 76 78 68 4 Engine 1 | . 10 . . 6 6 5 . . . . . . . . Core 5 | . 3 14 13 5 4 5 . . . 4 4 4 . . Reactor 5 | . . . . . . . 11 10 8 7 9 7 10 . Treads 19 | . 28 28 27 11 10 18 22 20 14 12 18 16 14 . Wheel 2 | . . . . 22 26 14 . . . . . . . . Device 15 | . 9 14 14 23 17 18 11 10 12 9 14 20 20 4 Storage 6 | . 14 14 14 6 6 6 5 5 5 4 4 4 3 . Processor 4 | . . . . . . . . . 4 5 9 8 4 . Protection 5 | . . . . . 7 6 10 10 13 13 6 7 5 . Energy Cannon 12 | . 15 28 25 10 11 10 . . 7 9 8 8 6 . Peak Build Rating 225 | 6 13 13 22 66 74 119 130 124 142 190 216 221 225 18 Average Rating 124 | 4 8 13 16 57 69 80 126 124 126 171 193 219 202 18 On Entrance 87 | . 6 13 13 22 66 74 119 124 124 114 190 206 221 18 Avg Prop Armor Cover (%) 12 | . . . . 15 8 12 . . . . . 2 . . Naked Turns 5 | . . . . . . . . . . . . . 5 . Heaviest Build 259 | 10 52 52 62 79 103 147 164 154 186 253 243 258 259 1 Greatest Support 210 | 40 40 40 40 52 64 210 210 210 210 198 200 200 210 3 Greatest Overweight (x) 6 | . 1 1 6 6 2 3 . . 1 1 1 1 3 . Average Overweight (x) . | . . 1 1 1 1 2 . . . 1 1 1 . . Largest Inventory Capacity 25 | 8 20 20 20 20 20 25 25 25 25 25 25 25 25 5 Average Capacity 22 | 7 13 20 20 20 20 21 25 25 25 25 25 25 23 5 Most Carried 25 | 3 10 11 20 17 17 22 19 18 18 25 25 24 25 5 Average Carried 18 | 1 7 10 18 10 14 15 17 18 14 17 24 23 22 5 Final Capacity 25 | 8 20 20 20 20 20 25 25 25 25 25 25 25 5 5 Final Carried 25 | 3 10 11 11 17 13 17 18 18 12 25 25 24 5 5 Transmogrified Parts 22 | . . . . 4 7 . 6 . 5 . . . . . Integrity Recovered 800 | . . . . 87 92 . 338 . 283 . . . . . Class Distribution -------------------- 61% | Mutant 37% | Scavenger-Mutant Dominant Class ---------------- Mutant | -10/Materials Mutant | -10/Subcaves Mutant | -9/Scraptown Mutant | -6/Factory Mutant | -6/Extension Scavenger-Mutant | -6/Cetus Scavenger-Mutant | -5/Factory Scavenger-Mutant | -4/Factory Scavenger-Mutant | -4/DSF Mutant | -3/Research Mutant | -3/Quarantine Scavenger-Mutant | -2/Research Scavenger-Mutant | -2/Testing Mutant | -2/Section 7 Resources | -11 -10 -10 -9 -6 -6 -6 -5 -4 -4 -3 -3 -2 -2 -2 ----------- Run | Yrd Mat Sub Scr Fac Ext Cet Fac Fac DSF Res Qua Res Tes Sec Matter Collected 2577 | 175 186 . 30 437 76 41 . . 111 161 997 40 323 . Remotely . | . . . . . . . . . . . . . . . Salvage Created 7306 | . 447 89 270 302 297 259 52 . 301 59 107 713 4410 . Parts 268 | . 30 2 14 20 18 10 5 . 14 4 . 37 114 . Haulers Intercepted 1 | . 1 . . . . . . . . . . . . . Recyclers Shooed 1 | . . . . . 1 . . . . . . . . . Parts Field Recycled . | . . . . . . . . . . . . . . . Retrieved Matter . | . . . . . . . . . . . . . . . Parts Self-Destructed 3 | . . 3 . . . . . . . . . . . . Prevented . | . . . . . . . . . . . . . . . Parts Restored . | . . . . . . . . . . . . . . . Kills | -11 -10 -10 -9 -6 -6 -6 -5 -4 -4 -3 -3 -2 -2 -2 ------- Run | Yrd Mat Sub Scr Fac Ext Cet Fac Fac DSF Res Qua Res Tes Sec Combat Hostiles Destroyed 96 | . 9 2 4 5 4 4 3 . 5 1 3 7 49 . Guns 5 | . 4 . . . . . . . 1 . . . . . Cannons 34 | . 5 2 1 3 2 3 . . 3 1 1 3 10 . AOE 12 | . . . 3 2 . . 3 . . . . . 4 . Classes Destroyed 21 | . 3 . 2 5 1 . 1 . 2 . 1 1 5 . Worker 4 | . 1 . . 2 . . . . . . . 1 . . Builder 1 | . . . . 1 . . . . . . . . . . Tunneler 2 | . . . . 1 1 . . . . . . . . . Hauler 1 | . 1 . . . . . . . . . . . . . Recycler 1 | . . . . . . . . . . . . 1 . . Mechanic 1 | . . . . . . . . . . . . . 1 . Drone 1 | . . . . 1 . . . . . . . . . . Swarmer 4 | . . . . . . . 3 . 1 . . . . . Saboteur 1 | . . . . . . . . . . . . . 1 . Grunt 51 | . 9 2 . 2 1 . . . . 1 1 3 32 . Brawler 5 | . . . . . . . . . . . . . 5 . Duelist 3 | . . . . . . . . . . . . . 3 . Protector 4 | . . . . . . . . . . . . . 4 . Sentry 4 | . . . . 1 1 . . . . . . 1 1 . Specialist 3 | . . . . . . . . . 3 . . . . . Hunter 1 | . . . . . . . . . . . 1 . . . Programmer 7 | . . . . 1 . . . . . . . 3 3 . Heavy 1 | . . . . . . . . . 1 . . . . . Behemoth 2 | . . . . . 2 . . . . . . . . . Cetus Guard 4 | . . . . . . 4 . . . . . . . . Quarantine Guard 1 | . . . . . . . . . . . 1 . . . Explorer 1 | . . . 1 . . . . . . . . . . . Scrapper 3 | . . . 3 . . . . . . . . . . . Best Kill Streak 13 | . 3 2 3 2 2 3 3 . 2 1 1 6 13 . Combat Bots Only 13 | . 3 2 3 2 1 3 3 . 2 1 1 5 13 . Max Kills in Single Turn 4 | . 1 1 2 1 1 1 3 . 1 1 1 1 4 . Gunslinging . | . . . . . . . . . . . . . . . Exploded 3 | . . . 2 1 . . 3 . . . . . 3 . Melee . | . . . . . . . . . . . . . . . Uniques/NPCs Destroyed . | . . . . . . . . . . . . . . . Combat | -11 -10 -10 -9 -6 -6 -6 -5 -4 -4 -3 -3 -2 -2 -2 -------- Run | Yrd Mat Sub Scr Fac Ext Cet Fac Fac DSF Res Qua Res Tes Sec Hostile Shots Fired 1092 | . 30 8 24 76 42 17 19 . 143 10 81 116 496 30 Missed 318 | . 6 1 6 25 15 5 1 . 64 4 36 33 110 12 Hits 774 | . 24 7 18 51 27 12 18 . 79 6 45 83 386 18 Melee 53 | . . . 7 28 . . . . . . . . 18 . Projectile 721 | . 24 7 11 23 27 12 18 . 79 6 45 83 368 18 AOE 1 | . . . . . . . . . . 1 . . . . Critical Strikes 36 | . . . 1 1 1 1 1 . 2 . 3 6 20 . Actively Blocked 25 | . . . . . . . . . . . 2 6 17 . Part Disruptions 1 | . . . . . . . . . . . . . 1 . Damage Taken 15402 | . 301 88 789 512 549 281 493 . 1340 288 1123 1385 7851 402 Core 1544 | . 33 23 81 29 57 40 20 . 89 . 8 23 739 402 Absorbed by Shields 1186 | . . . . . 46 79 . . . . 22 600 439 . Reduced by Siege Mode 274 | . . . . . . . . . . . 22 18 234 . Ignored by Resistances 1227 | . . . . . . . . . . . . . 1227 . Regen/Repaired (Parts) 3722 | . . . . . . . . . . 49 322 489 2862 . Core Remaining (%) 84 | 100 . . 48 . . 80 97 . 90 . 89 . . . Volleys Fired 419 | . 29 6 9 31 21 14 10 . 22 6 40 36 195 . Largest 2 | . 2 2 2 2 2 2 2 . 2 2 1 1 1 . Hottest 240 | . 120 120 125 170 170 170 240 . 175 175 113 113 113 . Shots Fired 541 | . 58 12 15 53 36 29 15 . 40 12 40 36 195 . Gun 61 | . 36 . . . . 1 14 . 10 . . . . . Cannon 469 | . 22 12 11 47 36 28 . . 30 12 40 36 195 . Launcher 9 | . . . 2 6 . . 1 . . . . . . . Special 2 | . . . 2 . . . . . . . . . . . Kinetic 36 | . 36 . . . . . . . . . . . . . Thermal 328 | . 22 12 11 47 36 29 14 . 40 12 34 16 55 . Explosive 9 | . . . 2 6 . . 1 . . . . . . . Electromagnetic 166 | . . . . . . . . . . . 6 20 140 . Robot Hit Streak 20 | . 9 2 14 8 10 9 4 . 10 13 12 7 20 . Robot Miss Streak 4 | . 3 1 . 3 4 1 4 . 3 2 2 2 3 . Penetration Max . | . . . . . . . . . . . . . . . Secondary Targets 1 | . . . . . . . . . 1 . . . . . Max Gunslinging Chain 1 | . . . . . . . . . 1 . . . . . Capacitor 179 | . . . . . . . . . . . . . 179 . Shots Hit Robots 375 | . 38 6 12 32 24 20 7 . 26 8 25 24 153 . Core Hits 160 | . 19 2 6 28 5 8 4 . 11 3 6 13 55 . Critical Kills 9 | . . . . . 2 1 . . 1 . 1 2 2 . Critical Parts Destroyed . | . . . . . . . . . . . . . . . Critical Strikes 12 | . . . . . 2 1 . . 1 . 1 3 4 . Meltdown 9 | . . . . . 2 1 . . 1 . 1 2 2 . Corrupt 3 | . . . . . . . . . . . . 1 2 . Melee Attacks . | . . . . . . . . . . . . . . . Impact . | . . . . . . . . . . . . . . . Slashing . | . . . . . . . . . . . . . . . Piercing . | . . . . . . . . . . . . . . . Sneak Attacks . | . . . . . . . . . . . . . . . Combat Hostiles . | . . . . . . . . . . . . . . . Follow-up Attacks . | . . . . . . . . . . . . . . . Damage Inflicted 13711 | . 446 105 357 1258 748 736 401 . 846 260 688 1110 6756 . Guns 624 | . 200 . . . . 32 212 . 180 . . . . . Cannons 11530 | . 246 105 179 768 748 704 . . 666 260 688 1110 6056 . Explosions 1557 | . . . 178 490 . . 189 . . . . . 700 . Melee . | . . . . . . . . . . . . . . . Ramming . | . . . . . . . . . . . . . . . Kinetic 200 | . 200 . . . . . . . . . . . . . Thermal 6510 | . 246 105 179 768 748 736 212 . 846 260 591 469 1350 . Explosive 857 | . . . 178 490 . . 189 . . . . . . . Electromagnetic 6144 | . . . . . . . . . . . 97 641 5406 . Impact . | . . . . . . . . . . . . . . . Slashing . | . . . . . . . . . . . . . . . Piercing . | . . . . . . . . . . . . . . . Highest Corruption 26 | . . . 26 5 6 17 2 . . . 1 5 21 22 Average Corruption 5 | . . . 16 5 5 6 2 . . . 1 4 11 21 Corruption Purged 10 | . . . . . . . . . . . . . 10 . Corruption Blocked . | . . . . . . . . . . . . . . . Effects 101 | . . . 1 14 15 4 2 . . . 5 5 50 5 Message Errors 23 | . . . 1 3 5 1 1 . . . . 2 7 3 Matter Fused 33 | . . . . 3 5 2 . . . . . 2 20 1 Heat Flow Errors 12 | . . . . 5 1 1 . . . . 1 . 4 . Energy Discharges 10 | . . . . 2 1 . . . . . 3 . 4 . Parts Rejected 1 | . . . . . . . . . . . . . 1 . Parts Fused 1 | . . . . . . . . . . . . . 1 . Data Loss (minor) 9 | . . . . 1 1 . 1 . . . . 1 5 . Data Loss (major) 4 | . . . . . . . . . . . 1 . 3 . Misfires 2 | . . . . . 1 . . . . . . . 1 . Alerts 2 | . . . . . . . . . . . . . 1 1 Misdirections 2 | . . . . . . . . . . . . . 2 . Weapon Failures 2 | . . . . . 1 . . . . . . . 1 . Overload Shots 2 | . . . . . . . 2 . . . . . . . Overflow Damage 208 | . . 5 . 45 11 . . . 13 4 27 12 91 . Projectiles 201 | . . 5 . 38 11 . . . 13 4 27 12 91 . Explosions 7 | . . . . 7 . . . . . . . . . . Melee . | . . . . . . . . . . . . . . . Knockbacks . | . . . . . . . . . . . . . . . Impact . | . . . . . . . . . . . . . . . Kinetic . | . . . . . . . . . . . . . . . Secondary . | . . . . . . . . . . . . . . . Self-Inflicted Damage 167 | . . . . 47 . . . . . . . . 120 . Shots 2 | . . . . 1 . . . . . . . . 1 . Rammed . | . . . . . . . . . . . . . . . Targets Rammed . | . . . . . . . . . . . . . . . Kicked . | . . . . . . . . . . . . . . . Crushed . | . . . . . . . . . . . . . . . Highest Temperature 348 | . 210 . 81 199 208 187 324 . 108 171 348 73 299 . Average Temperature 84 | . 72 . 31 65 52 123 95 . 43 62 80 32 105 . Received Heat Transfer 2246 | . 168 54 36 79 88 . 18 . 84 27 12 129 1551 . Siege Activations 14 | . . . . . . . . . . . 1 5 8 . Total Turns 276 | . . . . . . . . . . . 11 69 196 . Longest Duration 58 | . . . . . . . . . . . 11 28 58 . Martial Activations . | . . . . . . . . . . . . . . . Shielding Activations . | . . . . . . . . . . . . . . . Robots Disrupted . | . . . . . . . . . . . . . . . Combat Hostiles . | . . . . . . . . . . . . . . . Robots Corrupted 36 | . . . . . . . . . . . . 3 33 . Combat Hostiles 36 | . . . . . . . . . . . . 3 33 . Parts Fried 58 | . . . . . . 1 . . . . . 3 54 . Impact Corruptions . | . . . . . . . . . . . . . . . Robots Melted 11 | . . . . 1 2 1 . . 1 . 2 2 2 . Combat Hostiles 9 | . . . . . 2 1 . . 1 . 2 1 2 . Parts Melted 31 | . 1 . 1 4 8 . . . 2 . 1 5 9 . Heat Transferred 7462 | . 518 222 268 1184 888 822 222 . 892 296 703 337 1110 . Parts Sabotaged . | . . . . . . . . . . . . . . . Parts Stolen 2 | . . . . 2 . . . . . . . . . . Parts Stripped . | . . . . . . . . . . . . . . . Power Chain Reactions . | . . . . . . . . . . . . . . . Alert | -11 -10 -10 -9 -6 -6 -6 -5 -4 -4 -3 -3 -2 -2 -2 ------- Run | Yrd Mat Sub Scr Fac Ext Cet Fac Fac DSF Res Qua Res Tes Sec Maximum Alert Level 5 | . . . . 1 . 1 3 2 2 1 3 4 5 4 Low Security (%) 29 | 100 100 . . 9 100 45 3 . . 73 15 . . . Level 1 26 | . . . . 90 . 54 . . 25 26 39 . . . Level 2 19 | . . . . . . . 80 100 74 . 24 55 9 . Level 3 13 | . . . . . . . 14 . . . 20 42 17 . Level 4 5 | . . . . . . . . . . . . 2 36 100 Level 5 2 | . . . . . . . . . . . . . 20 . High Security 2 | . . . . . . . . . . . . . 15 . Max Security . | . . . . . . . . . . . . . . . Sterilizations 1 | . . . . . . . . . 1 . . . . . Peak Influence 2110 | . 105 . . 328 188 313 862 416 575 320 1004 1153 2110 1191 Initial 1186 | . . . . . 117 95 147 416 294 315 72 557 648 1186 Average 466 | . 34 . . 252 85 220 550 416 468 139 412 656 1344 1183 Influence Increases 7921 | . 253 50 . 564 361 288 1023 5 326 332 1640 916 2132 31 Destroy 0b10 Robot/C 3440 | . 180 40 . 280 200 160 340 . 180 100 340 460 1160 . Destroy 0b10 Robot/NC 230 | . 10 . . 20 40 10 50 . . 5 5 55 35 . Destroy Leader 580 | . 32 10 . 40 22 . 76 . 20 22 122 94 142 . Allied During Kill 1074 | . . . . 122 76 86 372 . 49 30 110 144 85 . Successful Hack 76 | . . . . . 7 9 . 5 . . 27 7 5 16 Select Force Hacks 30 | . 30 . . . . . . . . . . . . . Disable Machine 525 | . . . . 30 . . 15 . . 15 210 45 210 . Destroy Structure 1312 | . 1 . . 72 16 23 170 . 62 160 352 111 345 . Partial Spotted 15 | . . . . . . . . . . . . . . 15 Lose Combat Pursuer 165 | . . . . . . . . . 15 . . . 150 . Miscellaneous 474 | . . . . . . . . . . . 474 . . . Influence Decreases 6744 | . 228 75 . 324 431 195 436 434 187 763 778 754 1175 964 Entered New Map 3053 | . . 13 . . 123 75 116 434 127 245 57 434 505 924 Time Decay 3201 | . 218 62 . 314 198 120 270 . . 518 711 310 440 40 Lost Part 370 | . 10 . . 10 50 . 10 . 60 . 10 10 210 . Lost Ally 120 | . . . . . 60 . 40 . . . . . 20 . Squads Dispatched 46 | . 1 . . 4 2 . 1 . 1 4 1 10 20 2 Investigation 9 | . 1 . . . 1 . . . . 3 1 1 2 . Extermination 9 | . . . . 3 . . 1 . . . . 2 2 1 Reinforcement 9 | . . . . 1 1 . . . 1 1 . 2 2 1 Assault 17 | . . . . . . . . . . . . 3 14 . Garrison 2 | . . . . . . . . . . . . 2 . . Intercept . | . . . . . . . . . . . . . . . Searches Triggered . | . . . . . . . . . . . . . . . Construction Impeded 3 | . . . . . 1 . . . . . . 1 1 . Haulers Reinforced . | . . . . . . . . . . . . . . . Active Scanning Responses . | . . . . . . . . . . . . . . . Cargo Convoy Interrupts . | . . . . . . . . . . . . . . . Stealth | -11 -10 -10 -9 -6 -6 -6 -5 -4 -4 -3 -3 -2 -2 -2 --------- Run | Yrd Mat Sub Scr Fac Ext Cet Fac Fac DSF Res Qua Res Tes Sec Distress Signals 13 | . 1 . . . . 2 . . . 4 . 1 3 2 Communications Jammed 1 | . . . . 1 . . . . . . . . . . Distress Signals 1 | . . . . 1 . . . . . . . . . . Times Spotted 243 | . 19 2 8 5 11 9 15 . 10 8 16 33 99 8 Peak Tracking Total 11 | . 5 2 6 4 3 5 5 . 6 2 3 7 11 9 Tactical Retreats 8 | . . . 1 . . . . . 1 . . . 6 . Traps | -11 -10 -10 -9 -6 -6 -6 -5 -4 -4 -3 -3 -2 -2 -2 ------- Run | Yrd Mat Sub Scr Fac Ext Cet Fac Fac DSF Res Qua Res Tes Sec Traps Triggered 6 | . . . . 1 . . . . . 2 . . 3 . Indirectly 1 | . . . . . . . . . . . . . 1 . Trap Hack Attempts . | . . . . . . . . . . . . . . . Triggered . | . . . . . . . . . . . . . . . Disarmed . | . . . . . . . . . . . . . . . Reprogrammed . | . . . . . . . . . . . . . . . Reused . | . . . . . . . . . . . . . . . Traps Extracted . | . . . . . . . . . . . . . . . Installed . | . . . . . . . . . . . . . . . Triggered . | . . . . . . . . . . . . . . . Machines | -11 -10 -10 -9 -6 -6 -6 -5 -4 -4 -3 -3 -2 -2 -2 ---------- Run | Yrd Mat Sub Scr Fac Ext Cet Fac Fac DSF Res Qua Res Tes Sec Machines Disabled 41 | . . . 3 2 . . 1 . . 1 14 3 17 . Max in Single Turn 5 | . . . 2 1 . . . . . 1 1 . 5 . Garrison Access 5 | . . . . 1 . . . . . 1 1 1 1 . Machines Repaired . | . . . . . . . . . . . . . . . Machines Dismantled . | . . . . . . . . . . . . . . . Machines Sabotaged . | . . . . . . . . . . . . . . . Overloaded Fab Kills . | . . . . . . . . . . . . . . . Hacking | -11 -10 -10 -9 -6 -6 -6 -5 -4 -4 -3 -3 -2 -2 -2 --------- Run | Yrd Mat Sub Scr Fac Ext Cet Fac Fac DSF Res Qua Res Tes Sec Machines Accessed 31 | . 2 . 4 2 2 1 1 1 . 2 11 2 2 1 Terminals 22 | . 1 . . 1 2 1 1 1 . 2 9 2 1 1 Fabricators . | . . . . . . . . . . . . . . . Repair Stations . | . . . . . . . . . . . . . . . Recycling Units 1 | . 1 . . . . . . . . . . . . . Scanalyzers 1 | . . . . . . . . . . . 1 . . . Garrison Access 3 | . . . . 1 . . . . . . 1 . 1 . Total Hacks 77 | . 6 . 19 4 3 1 4 1 . 2 26 4 5 2 Successful 38 | . 2 . 19 1 1 1 1 1 . . 8 1 2 1 Failed 39 | . 4 . . 3 2 . 3 . . 2 18 3 3 1 Catastrophic 9 | . . . . . 1 . 1 . . 2 4 1 . . Database Lockouts . | . . . . . . . . . . . . . . . Manual 25 | . 7 . . 2 . 1 4 . . . 4 2 4 1 Terminals 47 | . 3 . . 2 3 1 4 1 . 2 21 4 4 2 Fabricators . | . . . . . . . . . . . . . . . Repair Stations . | . . . . . . . . . . . . . . . Recycling Units 3 | . 3 . . . . . . . . . . . . . Scanalyzers 1 | . . . . . . . . . . . 1 . . . Garrison Access 7 | . . . . 2 . . . . . . 4 . 1 . Terminal Hacks 29 | . 1 . 19 . 1 1 . 1 . . 5 1 . . Record 14 | . . . 12 . . . . . . . 2 . . . Robot Analysis 7 | . 1 . 6 . . . . . . . . . . . Prototype ID Bank 1 | . . . . . . . . . . . 1 . . . Open Door 3 | . . . . . 1 1 . . . . 1 . . . Open DSF 1 | . . . . . . . . 1 . . . . . . Branch Access Points 1 | . . . . . . . . . . . . 1 . . Alert Level 1 | . . . . . . . . . . . 1 . . . Proto ID Catalog 1 | . . . 1 . . . . . . . . . . . Fabricator Hacks . | . . . . . . . . . . . . . . . Repair Station Hacks . | . . . . . . . . . . . . . . . Recycling Unit Hacks . | . . . . . . . . . . . . . . . Scanalyzer 1 | . . . . . . . . . . . 1 . . . Retrieve Study 1 | . . . . . . . . . . . 1 . . . Garrison Access Hacks 3 | . . . . 1 . . . . . . 1 . 1 . Seal Access 3 | . . . . 1 . . . . . . 1 . 1 . Unauthorized Hacks 5 | . 1 . . . . . 1 . . . 1 . 1 1 Terminals 4 | . . . . . . . 1 . . . 1 . 1 1 Botnet 4 | . . . . . . . 1 . . . 1 . 1 1 Fabricators . | . . . . . . . . . . . . . . . Repair Stations . | . . . . . . . . . . . . . . . Recycling Units 1 | . 1 . . . . . . . . . . . . . Tunnel 1 | . 1 . . . . . . . . . . . . . Scanalyzers . | . . . . . . . . . . . . . . . Garrison Access . | . . . . . . . . . . . . . . . Data Cores Recovered . | . . . . . . . . . . . . . . . Used . | . . . . . . . . . . . . . . . Hacking Detections 21 | . 2 . . 1 1 . 1 1 . 2 9 2 1 1 Full Trace Events 1 | . . . . . 1 . . . . . . . . . Feedback Events 1 | . . . . . 1 . . . . . . . . . Corruption 1 | . . . . . 1 . . . . . . . . . Feedback Blocked . | . . . . . . . . . . . . . . . Robot Schematics Acquired 1 | . . . . . . . . . . . . . 1 . Robots Built . | . . . . . . . . . . . . . . . Authchips . | . . . . . . . . . . . . . . . Time . | . . . . . . . . . . . . . . . Total Robot Build Rating . | . . . . . . . . . . . . . . . Part Schematics Acquired 3 | . . . . . . . . . . . . . 3 . Parts Built . | . . . . . . . . . . . . . . . Authchips . | . . . . . . . . . . . . . . . Time . | . . . . . . . . . . . . . . . Total Part Build Rating . | . . . . . . . . . . . . . . . Part Studies Acquired 1 | . . . . . . . . . . . 1 . . . Parts Repaired . | . . . . . . . . . . . . . . . Time . | . . . . . . . . . . . . . . . Parts Recycled . | . . . . . . . . . . . . . . . Recycled Matter . | . . . . . . . . . . . . . . . Retrieved Matter . | . . . . . . . . . . . . . . . Retrieved Components . | . . . . . . . . . . . . . . . Parts Scanalyzed . | . . . . . . . . . . . . . . . Part Schematics Acquired . | . . . . . . . . . . . . . . . Parts Damaged . | . . . . . . . . . . . . . . . Bothacking | -11 -10 -10 -9 -6 -6 -6 -5 -4 -4 -3 -3 -2 -2 -2 ------------ Run | Yrd Mat Sub Scr Fac Ext Cet Fac Fac DSF Res Qua Res Tes Sec Used RIF Installer . | . . . . . . . . . . . . . . . Robots Hacked . | . . . . . . . . . . . . . . . Non-combat . | . . . . . . . . . . . . . . . Combat . | . . . . . . . . . . . . . . . Robot Hacks Applied . | . . . . . . . . . . . . . . . Relay Couplers Released 8 | . . . . 1 . . . . . 3 2 1 1 . Machine Destruction 8 | . . . . 1 . . . . . 3 2 1 1 . Fabnet Peak Effective % . | . . . . . . . . . . . . . . . Robots Rewired . | . . . . . . . . . . . . . . . Allies Hacked . | . . . . . . . . . . . . . . . Hacks Repelled . | . . . . . . . . . . . . . . . Allies | -11 -10 -10 -9 -6 -6 -6 -5 -4 -4 -3 -3 -2 -2 -2 -------- Run | Yrd Mat Sub Scr Fac Ext Cet Fac Fac DSF Res Qua Res Tes Sec Total Allies 12 | . . . 1 4 1 5 . . . 1 . . . . Largest Group 7 | . . . 1 5 4 7 6 1 1 1 1 1 1 . Highest-Rated Group 1096 | . . . 464 580 623 1096 1000 464 464 541 574 558 552 . Highest-Rated Ally 574 | . . . 464 464 464 464 464 464 464 541 574 558 552 . Total Orders . | . . . . . . . . . . . . . . . Ally Attacks 312 | . . . 6 22 42 31 54 . 20 14 47 43 33 . Total Damage 20861 | . . . 263 825 2054 1586 2922 . 884 915 5096 4036 2280 . Kills 121 | . . . 4 9 13 6 25 . 4 5 15 25 15 . Allies Corrupted 1 | . . . . . . . . . . . . . 1 . Allies Melted . | . . . . . . . . . . . . . . . X0-1V1 Amusement Gains 285 | . 14 . . 4 6 . 6 . 15 81 53 34 26 46 Average Entertainment 60 | . 14 6 2 2 5 4 4 4 16 75 97 87 97 68 Good Acts 71 | . . 2 4 27 1 2 2 . 1 6 12 3 11 . Bad Acts 50 | . . 1 7 16 1 . . . . 4 10 1 5 5 Intel | -11 -10 -10 -9 -6 -6 -6 -5 -4 -4 -3 -3 -2 -2 -2 ------- Run | Yrd Mat Sub Scr Fac Ext Cet Fac Fac DSF Res Qua Res Tes Sec Active Infowar (turns) 6277 | . . . 2 758 207 . 10 . . 307 3638 694 661 . Sensors 5300 | . . . . . . . . . . 307 3638 694 661 . Terrain 10 | . . . . . . . 10 . . . . . . . Jamming 967 | . . . 2 758 207 . . . . . . . . . Robot Analysis Total 7 | . 1 . 6 . . . . . . . . . . . Derelict Logs Recovered 1 | . . . 1 . . . . . . . . . . . Drone Launches . | . . . . . . . . . . . . . . . Drone Recoveries . | . . . . . . . . . . . . . . . Exploration | -11 -10 -10 -9 -6 -6 -6 -5 -4 -4 -3 -3 -2 -2 -2 ------------- Run | Yrd Mat Sub Scr Fac Ext Cet Fac Fac DSF Res Qua Res Tes Sec Turns Passed 12980 | 78 709 274 2546 758 411 254 587 8 198 1434 3638 694 1297 94 Spaces Moved 5604 | 44 263 107 1029 492 303 130 310 6 50 569 1418 231 474 178 Core 332 | 3 . . . . . . . . . . . . 151 178 Treads 4353 | 41 263 107 1028 . . 7 310 6 50 569 1418 231 323 . Legs . | . . . . . . . . . . . . . . . Wheels 919 | . . . 1 492 303 123 . . . . . . . . Hover . | . . . . . . . . . . . . . . . Flight . | . . . . . . . . . . . . . . . Fastest Speed 50 | 50 160 240 170 98 105 123 160 160 160 238 235 235 50 50 Average Speed 198 | 152 183 240 240 107 109 127 160 160 194 241 237 235 175 50 Slowest Speed 385 | 160 240 240 360 170 123 240 160 160 245 245 238 238 385 50 Overloaded Moves . | . . . . . . . . . . . . . . . Propulsion Burnouts . | . . . . . . . . . . . . . . . Robots Hopped . | . . . . . . . . . . . . . . . Potential Cave-ins . | . . . . . . . . . . . . . . . Cave-ins Triggered . | . . . . . . . . . . . . . . . Teleports 2 | . . . . . . . . . . . 1 . 1 . Exploration Rate (%) 39 | 4 51 15 79 16 47 72 13 . 50 23 97 15 56 12 Regions Visited 14 Branch Regions 7 Pre-discovered Areas 1 | . 1 . . . . . . . . . . . . . Known Exits Taken 7 | . . . . 1 . 1 1 1 . 1 1 1 . . Unknown Exits Taken 6 | 1 1 1 1 . 1 . . . . . . . 1 . Scrap Searched 8 | . . . 8 . . . . . . . . . . . Spaces Dug 22 | . . . . 6 . . 1 . . . 1 4 10 . Terrain Destroyed 162 | . . . 11 34 6 3 12 . 4 2 1 5 84 . Melee . | . . . . . . . . . . . . . . . Projectile 52 | . . . . 9 6 3 4 . 4 2 1 5 18 . AOE 110 | . . . 11 25 . . 8 . . . . . 66 . Terrain Rammed . | . . . . . . . . . . . . . . . Walls Destroyed . | . . . . . . . . . . . . . . . Machines Disabled . | . . . . . . . . . . . . . . . Actions | -11 -10 -10 -9 -6 -6 -6 -5 -4 -4 -3 -3 -2 -2 -2 --------- Run | Yrd Mat Sub Scr Fac Ext Cet Fac Fac DSF Res Qua Res Tes Sec Total 7121 | 52 440 113 1089 661 348 190 385 5 110 617 1656 347 925 183 Wait 801 | . 127 . 15 111 6 15 58 . 31 13 134 76 210 5 Move 5590 | 43 262 106 1028 491 302 129 309 5 49 568 1417 230 473 178 Hop . | . . . . . . . . . . . . . . . Pick Up 99 | 3 9 1 15 9 5 12 3 . . 13 18 2 9 . Fast Attach 46 | 6 4 . . 8 3 4 . . 1 5 11 . 4 . Attach 53 | . . . 8 6 3 2 2 . 5 4 1 3 19 . Detach 6 | . . . . 1 . . . . . . 2 . 3 . Swap 37 | . 3 . 7 4 1 6 3 . 2 . 6 . 5 . Drop 68 | . 6 . 7 . 7 8 . . . 6 27 . 7 . Fire 419 | . 29 6 9 31 21 14 10 . 22 6 40 36 195 . Melee . | . . . . . . . . . . . . . . . Ram . | . . . . . . . . . . . . . . . Kick . | . . . . . . . . . . . . . . . Crush . | . . . . . . . . . . . . . . . Escape Stasis 2 | . . . . . . . . . . 2 . . . . Rewire . | . . . . . . . . . . . . . . . Trap . | . . . . . . . . . . . . . . . Miscellaneous . | . . . . . . . . . . . . . . . Route ------- -11/Scrapyard -10/Materials (discovered 2 exits: [*Mat] / [*Sub]) -10/Subcaves -9/Scraptown -6/Factory (discovered 3 exits: Fac x2 / *Ext) -6/Extension (discovered 2 exits: *Fac / *Cet) -6/Cetus (discovered 2 exits: *Fac / [*Arc]) -5/Factory -4/Factory -4/DSF -3/Research -3/Quarantine -2/Research (discovered 2 exits: *Tes x2) -2/Testing (discovered 3 exits: Acc / *Sec / [*Frg]) -2/Section 7 History --------- Turn | Location | Event 6 | -11/Scrapyard | Discovered new exit (range 16) 79 | -11/Scrapyard | Entered Materials 321 | -10/Materials | Build established: Mutant 612 | -10/Materials | Discovered new exit (range 16) 740 | -10/Materials | Discovered new exit (range 5) 780 | -10/Materials | Prayed at D.C.S.S. Altar Unit 788 | -10/Materials | Entered Subcaves 789 | -10/Subcaves | Approached by a straggling Scientist 800 | -10/Subcaves | Melee accuracy permanently improved by X0-1V1 (+5%; -50 max core) 1040 | -10/Subcaves | Scientist uncovered a shortcut to Scraptown 1062 | -10/Subcaves | Entered Scraptown 1348 | -9/Scraptown | Visited Cave Peace 1506 | -9/Scraptown | Visited Bundlers 1679 | -9/Scraptown | Visited CPS Storage 1737 | -9/Scraptown | Scanned Subdweller tech in exchange for log data 1744 | -9/Scraptown | Learned Research terminal intel 1852 | -9/Scraptown | Heard Great Nut preacher, LISTEN AND RECITE! 2265 | -9/Scraptown | Visited UFD Registry 2265 | -9/Scraptown | Registered with UFD as "Railbrain" 2328 | -9/Scraptown | Visited Scrapoid Pod Storage 2361 | -9/Scraptown | Visited Derelict Rescue Squad 2409 | -9/Scraptown | Visited Curators Association 2580 | -9/Scraptown | Visited Analyses Database 2635 | -9/Scraptown | Visited A0-MCA Data Center 2649 | -9/Scraptown | Given a C+ rating by A0-MCA 2655 | -9/Scraptown | Found A0-MCA's Component Scanner 2687 | -9/Scraptown | Visited Science Guys 2773 | -9/Scraptown | Visited DA-N13 Charitable Foundation 2814 | -9/Scraptown | Visited Abandonware Association 2852 | -9/Scraptown | Learned abandonware demo "MELTYB.EXE" 2910 | -9/Scraptown | Visited Modified Component R&D 3027 | -9/Scraptown | Found DCF Scrap (28 items) 3352 | -9/Scraptown | X0-1V1 brought Wyrm Statue to life 3352 | -9/Scraptown | Attacked by Scraptown defenders 3355 | -9/Scraptown | Attached CPS modules to Chaos Wyrm 3526 | -9/Scraptown | Attached CPS modules to Triborg 3530 | -9/Scraptown | Core integrity fell below 50% 3542 | -9/Scraptown | X0-1V1 whisked you away to safety 3562 | -9/Scraptown | Lost 5 parts (1p3n1w) 3563 | -9/Scraptown | System corruption reached 10% 3575 | -9/Scraptown | X0-1V1 vaporized surrounding terrain (radius 23) 3585 | -9/Scraptown | Discovered new exit (range 6) 3597 | -9/Scraptown | X0-1V1 caused items to flee you 3605 | -9/Scraptown | Propulsion slot count permanently improved by X0-1V1 (+1) 3608 | -9/Scraptown | Entered Factory 3608 | -6/Factory | Accompanied by 1 ally 3608 | -6/Factory | Evolved 8 slots: Power x1, Propulsion x3, Utility x4 3612 | -6/Factory | Identified exit to Factory 3612 | -6/Factory | X0-1V1 revealed exit location to -5/Factory 3615 | -6/Factory | Heat dissipation permanently improved by X0-1V1 (+30; -150 max core) 3621 | -6/Factory | X0-1V1 activates XOMVISION 3631 | -6/Factory | X0-1V1 put everyone to sleep 3643 | -6/Factory | X0-1V1 redirected Transport squads to designated parking area 3652 | -6/Factory | Forcibly received Sfc. Transmogifier from X0-1V1 3656 | -6/Factory | X0-1V1 announced a LAN party 3659 | -6/Factory | X0-1V1 foreshadows a heat wave 3667 | -6/Factory | X0-1V1 enhanced Transport squad support 3674 | -6/Factory | X0-1V1 sent you into danger 3694 | -6/Factory | Prototype Protection reconfigured into Item Mimic 3694 | -6/Factory | X0-1V1 vaporized surrounding terrain (radius 16) 3744 | -6/Factory | X0-1V1 sent you to a vault 3769 | -6/Factory | X0-1V1 released a cloud of subatomizers 3775 | -6/Factory | X0-1V1 revealed exit location to -5/Factory 3870 | -6/Factory | Ambient heat levels rising (+10) 3988 | -6/Factory | Ambient heat levels rising (+10) 4042 | -6/Factory | Identified exit to Extension 4042 | -6/Factory | X0-1V1 revealed exit location to -6/Extension 4196 | -6/Factory | Ambient heat levels falling (-10) 4304 | -6/Factory | Ambient heat levels falling (-10) 4347 | -6/Factory | X0-1V1 woke everyone up 4366 | -6/Factory | Entered Extension 4366 | -6/Extension | Accompanied by 4 allies 4446 | -6/Extension | Spotted B-75 Beast 4456 | -6/Extension | Destroyed B-75 Beast 4468 | -6/Extension | Spotted B-75 Beast 4499 | -6/Extension | Destroyed B-75 Beast 4510 | -6/Extension | Lost 3 allies 4529 | -6/Extension | Lost 4 parts (1p2n1u) 4585 | -6/Extension | Rescued A7 4752 | -6/Extension | Discovered exit to Factory (range 16) 4752 | -6/Extension | Discovered new exit (range 16) 4777 | -6/Extension | Entered Cetus 4777 | -6/Cetus | Accompanied by 2 allies (A7) 4782 | -6/Cetus | Acquired a Cetus Manufacturing Module code from A7 4794 | -6/Cetus | Spotted Cetus Guard 4794 | -6/Cetus | Spotted Cetus Guard 4797 | -6/Cetus | Spotted Cetus Guard 4805 | -6/Cetus | Allies destroyed Cetus Guard 4809 | -6/Cetus | Destroyed Cetus Guard 4810 | -6/Cetus | Allies destroyed Cetus Guard 4813 | -6/Cetus | Spotted Cetus Guard 4813 | -6/Cetus | Allies destroyed Cetus Guard 4863 | -6/Cetus | Started Cetus Manufacturing Module 4873 | -6/Cetus | Escorted A7 to Cetus Mainframe 4886 | -6/Cetus | Discovered new exit (range 15) 4888 | -6/Cetus | Manufactured an Enhanced Grunt 4911 | -6/Cetus | Spotted Cetus Guard 4911 | -6/Cetus | Spotted Cetus Guard 4913 | -6/Cetus | Manufactured an Enhanced Grunt 4916 | -6/Cetus | Spotted Cetus Guard 4917 | -6/Cetus | Destroyed Cetus Guard 4919 | -6/Cetus | Spotted Cetus Guard 4923 | -6/Cetus | Destroyed Cetus Guard 4924 | -6/Cetus | Allies destroyed Cetus Guard 4932 | -6/Cetus | Destroyed Cetus Guard 4938 | -6/Cetus | Manufactured an Enhanced Grunt 4940 | -6/Cetus | Discovered exit to Factory (range 16) 4946 | -6/Cetus | Met Revision 17 4963 | -6/Cetus | Manufactured an Enhanced Grunt 4988 | -6/Cetus | Manufactured an Enhanced Grunt 4997 | -6/Cetus | System corruption reached 10% 5031 | -6/Cetus | Entered Factory 5031 | -5/Factory | Accompanied by 6 allies (A7) 5031 | -5/Factory | Evolved 2 slots: Power x1, Utility x1 5036 | -5/Factory | Received a hacking code to weaken MAIN.C 5071 | -5/Factory | Build established: Scavenger-Mutant 5342 | -5/Factory | Identified exit to Factory 5342 | -5/Factory | X0-1V1 revealed exit location to -4/Factory 5618 | -5/Factory | Entered another Factory area 5618 | -4/Factory | Accompanied by 1 ally 5618 | -4/Factory | Evolved 2 slots: Utility x2 5626 | -4/Factory | Identified exit to DSF 5626 | -4/Factory | Entered DSF 5626 | -4/DSF | Accompanied by 1 ally 5638 | -4/DSF | Additional patrols routed to DSF 5679 | -4/DSF | Discovered new exit (range 19) 5759 | -4/DSF | Sterilization system engaged 5779 | -4/DSF | Ambient heat levels rising (+10) 5794 | -4/DSF | Ambient heat levels rising (+10) 5809 | -4/DSF | Ambient heat levels rising (+10) 5815 | -4/DSF | Lost 4 parts (2p1n1u) 5824 | -4/DSF | Ambient heat levels rising (+10) 5824 | -4/DSF | Entered Research 5824 | -3/Research | Accompanied by 1 ally 5824 | -3/Research | Evolved 2 slots: Utility x2 5825 | -3/Research | Loaded intel: 23 terminal locations 5864 | -3/Research | Chaos Wyrm evolved into Greater Chaos Wyrm 5877 | -3/Research | Found Wyrmplate 6024 | -3/Research | Revision forces began assault on 0b10 6056 | -3/Research | Met up with Revision 17++ 6069 | -3/Research | Build established: Mutant 6524 | -3/Research | Research terminal network offline 6629 | -3/Research | Found Quantum Capacitor 6650 | -3/Research | Identified exit to Quarantine 6650 | -3/Research | X0-1V1 revealed exit location to -3/Quarantine 7086 | -3/Research | Build established: Scavenger-Mutant 7258 | -3/Research | Entered Quarantine 7258 | -3/Quarantine | Accompanied by 1 ally 7487 | -3/Quarantine | Cryocooling Duct disabled 7502 | -3/Quarantine | Ambient heat levels rising (+20) 7502 | -3/Quarantine | Non-combat units ordered to evacuate 7532 | -3/Quarantine | Cryocooling Duct disabled 7547 | -3/Quarantine | Ambient heat levels rising (+20) 7547 | -3/Quarantine | Combat units ordered to evacuate 7647 | -3/Quarantine | Quarantine Guard activated 7753 | -3/Quarantine | Spotted Quarantine Guard 7756 | -3/Quarantine | Allies destroyed Quarantine Guard 7767 | -3/Quarantine | Spotted Quarantine Guard 7776 | -3/Quarantine | Allies destroyed Quarantine Guard 7820 | -3/Quarantine | Spotted Quarantine Guard 7996 | -3/Quarantine | Found Alien Artifact 7996 | -3/Quarantine | Identified Transdimensional Reconstructor 7996 | -3/Quarantine | Warped through subspace 8095 | -3/Quarantine | Found Transdimensional Reconstructor 8153 | -3/Quarantine | Found Alien Artifact 8153 | -3/Quarantine | Identified Dimensional Node Initializer 8153 | -3/Quarantine | Initialized slip node 8157 | -3/Quarantine | Found Dimensional Node Initializer 8336 | -3/Quarantine | Spotted Quarantine Guard 8347 | -3/Quarantine | X0-1V1 activates XOMVISION 8450 | -3/Quarantine | X0-1V1 caused items to flee you 8647 | -3/Quarantine | Spotted Quarantine Guard 8722 | -3/Quarantine | Allies destroyed Quarantine Guard 8755 | -3/Quarantine | Items stopped fleeing you 8757 | -3/Quarantine | Spotted Quarantine Guard 8757 | -3/Quarantine | X0-1V1 sent you into danger 8766 | -3/Quarantine | Allies destroyed Quarantine Guard 8886 | -3/Quarantine | Spotted Quarantine Guard 8945 | -3/Quarantine | Allies destroyed Quarantine Guard 9033 | -3/Quarantine | Sensors blinded by X0-1V1 9203 | -3/Quarantine | Spotted Quarantine Guard 9226 | -3/Quarantine | Destroyed Quarantine Guard 9234 | -3/Quarantine | Build established: Mutant 9269 | -3/Quarantine | Spotted Quarantine Guard 9269 | -3/Quarantine | Allies destroyed Quarantine Guard 10094 | -3/Quarantine | Discovered new exit (range 8) 10108 | -3/Quarantine | Identified exit to Research 10123 | -3/Quarantine | Spotted Quarantine Guard 10146 | -3/Quarantine | Allies destroyed Quarantine Guard 10146 | -3/Quarantine | X0-1V1 added 0b10 threat records associated with you (considerable) 10211 | -3/Quarantine | Found Alien Energy Cannon 10211 | -3/Quarantine | Identified Core Cannon 10443 | -3/Quarantine | X0-1V1 vaporized surrounding terrain (radius 22) 10513 | -3/Quarantine | X0-1V1 added 0b10 threat records associated with you (major) 10520 | -3/Quarantine | Found Alien Launcher 10520 | -3/Quarantine | Identified Sigix Terminator 10896 | -3/Quarantine | Entered Research 10896 | -2/Research | Accompanied by 1 ally 10896 | -2/Research | Evolved 2 slots: Utility x2 10960 | -2/Research | Identified exit to Testing 11203 | -2/Research | Build established: Scavenger-Mutant 11255 | -2/Research | Garrison activated, responded to threat 11396 | -2/Research | First assault squad dispatched 11518 | -2/Research | X0-1V1 sent you into danger 11535 | -2/Research | Garrison activated, responded to threat 11590 | -2/Research | Entered Testing 11590 | -2/Testing | Accompanied by 1 ally 11840 | -2/Testing | First assault squad dispatched 12248 | -2/Testing | System corruption reached 10% 12310 | -2/Testing | Lost 3 parts (1p1n1u) 12313 | -2/Testing | Destroyed 9 combat bots 12418 | -2/Testing | Weapon slot count temporarily expanded by X0-1V1 (+1) 12494 | -2/Testing | Destroyed 7 combat bots 12683 | -2/Testing | High security lockdown imminent 12749 | -2/Testing | Warped through subspace 12752 | -2/Testing | X0-1V1 sent you into danger 12763 | -2/Testing | High security lockdown engaged 12811 | -2/Testing | Released all parts (11) 12812 | -2/Testing | Destroyed 13 combat bots 12819 | -2/Testing | Core integrity fell below 50% 12834 | -2/Testing | Identified exit to Access 12834 | -2/Testing | X0-1V1 revealed exit location to -1/Access 12840 | -2/Testing | Lost 14 parts (5p4n3u2w) 12841 | -2/Testing | X0-1V1 caused items to flee you 12849 | -2/Testing | Spotted Fortress 12885 | -2/Testing | Discovered new exit (range 5) 12885 | -2/Testing | Discovered new exit (range 6) 12887 | -2/Testing | Entered Section 7 12928 | -2/Section 7 | Weapon slot count reverted to normal (-1) 12972 | -2/Section 7 | Core integrity fell below 20% 12981 | -2/Section 7 | Destroyed by H-88 Terminator with KE Penetrator Last Messages --------------- >>Trojan(Botnet) Trojan loaded successfully. Testing... Terminal linked with 0 systems. Awaiting botnet instructions. 12960_ X0-1V1: "I know that drunk sailor look when I see it." 12964_ X0-1V1: "The ol' switcheroo!" P-80 Master form resolidifies at new position. Form resolidifies at new position. 12967_ Movement behavior is fully back under control. 12971_ Penetrated by Slug. 12973_ Slug penetrates Wall. 12977_ YHMN RJ:GD:PJ U,WQEPZLB/X7 >8 12978_ Slug penetrates Wall. 12980_ Penetrated by Slug. 12981_ Slug penetrates Wall. 12981_ Penetrated by Slug. 12981_ X0-1V1 chuckles heartily! Map ----- +----------------------------------------------------+ | ?????????????????????????????????????????????????? | | ?????????????????????????????????????????????????? | | ?????????????????????????????????????????????????? | | ?????????????????????????????????????????????????? | | ?????????????????????????????????????????????????? | | ?????????????????????????????????????????????????? | | ?????????????????????????????????????????????????? | | ?????????????????????????????????????????????????? | | ?????????????????????????????????????????????????? | | ?????????????????????????????????????????????????? | | ?????????????????????????????????????????????????? | | ?????????????????????????????????????????????????? | | ?????????????????????????????????????????????????? | | ???????????????????########??????????????????????? | | ???????????????????? #??????????????????????? | | ???????????????????? #??????????????????????? | | ???????????????????? #??????????????????????? | | ????????????????????? #??????????????????????? | | ??????????????######## #??????????????????????? | | ??????????????# #u #??????????????????????? | | ??????????????# # ########???????????????? | | ??????????????#"" # #???????????????? | | ??????????????#"" + ###?????????????? | | ??????????????#G # ""#?????????????? | | ??????????????#"" # ""#?????????????? | | ??????????????#"" ####@ ""#?????????????? | | ??????????????# #??# T#?????????????? | | ##################/###### w ""#?????????????? | | hh ""#?????????????? | | ""#?????????????? | | != ###?????????????? | | == #???????????????? | | ####+################# #???????????????? | | # #???????????? #???????????????? | | + #???????????? #???????????????? | | ### #### ! #???????????? #???????????????? | | ??# #??# #????????????? #???????????????? | | ??# #??# #????????????? #???????????????? | | ??# #??# #????????????? #???????????????? | | ??# #??# #??????????????###???????????????? | | ??# #??# ""T"" #??#####?????????????????????????? | | ??# #??# """"" #??# ?????????????????????????? | | ??# #??########/#??# #????????????????????????? | | ??# #?????????# #??# #????????????????????????? | | ??# #?????????# #??# #????????????????????????? | | ??# ########### #### ##+#######???????????????? | | ??# # ]# / ????????????????? | | ??# # # #?????????????????? | | ??# # # #?????????????????? | | ??# + # #?????????????????? | +----------------------------------------------------+ Best States ------------- Heat Dissipation 194 Coolant Potential 100 Energy Generation 65 Energy Capacity 1890 Matter Stores 1000 Matter Capacity 1000 Sight Range 22 Robot Scan Range 18 Terrain Scan Range 20 Terrain Scan Density 10 Jamming Range 12 Additional Mass Support 12 Base Temperature (-) 200 Armor Coverage 2900 Resistance: TH 21 Evasion (%) 50 Recoil Reduction 6 Defensive Hacking 10 Item Schematics ----------------- Exp. Thermal Defense Suite | -2/Testing | Archive Tactical Quantum Warhead | -2/Testing | Archive Ragnarok Missile Launcher | -2/Testing | Archive Robot Schematics ------------------ T-07 Excavator | -2/Testing | Archive Fabricated ------------ Nothing Repaired ---------- Nothing Studied --------- HERF Cannon | -3/Quarantine | Hacked Alien Tech Used ----------------- Transdimensional Reconstructor Dimensional Node Initializer Core Cannon Sigix Terminator Achievements -------------- Greater Chaos Challenges ------------ None Game ------ Seed AlertIonActivator Manual? 0 Play Time 01:54:49 Cumulative 316.4 hours Start 2026.09.01 @ 14:17:46 End 2026.09.01 @ 18:31:01 Sessions 5 Manual Loads 0 Difficulty Rogue Special Mode None Game No. 302 Rogue 248 Adventurer 54 Explorer 0 Win Type - Total 13 Types 9/0/1/1/0/0/0/1/0/1 Lore% 78 Gallery% 68 Achievement% 62 Wizard Run 0 Options --------- Layout 1 ASCII 0 Keyboard 0 Movement Mouse Keybinds 1 Fullscreen 2 Font 32/Tamsyn Map View 50x35 Zoom Use 0% Tactical HUD 1 Map Filters NONE Filters NONE Steam 1 RUN: 22f6774d-9a91-4a27-b9e6-1499c98fd0e0